fUST/lending_fUST_20251116
["ID","MTS","AMOUNT","RATE_DAILY","PERIOD"]
[394083071,1763253038611,-500.0,0.00018777,2]
[394083072,1763253038621,-500.0,0.00018777,2]
[394083073,1763253038631,-479.14954674,0.00018777,2]
[394083074,1763253038640,-151.0,0.00018777,2]
[394083075,1763253038650,-221732.4366906,0.00018778,2]
[394083076,1763253038662,-3520.04,0.00018778,2]
[394083087,1763253040790,-3e-08,0.00018767,2]
[394083088,1763253040812,-150.99999997,0.00018767,2]
[394083089,1763253040821,-151.0,0.00018767,2]
[394083090,1763253040831,-151.0,0.00018767,2]
[394083091,1763253040840,-43283.66132881,0.00018778,2]
[394083094,1763253045642,-150.0,0.00018771,2]
[394083095,1763253045652,-66625.49484225,0.00018778,2]
[394083111,1763253078851,57035.0,0.00018,2]
[394083112,1763253079099,300.0,0.0001826,2]
[394083129,1763253135765,-300.0,0.00018589,2]
[394083130,1763253135794,-162.589,0.00018589,2]
[394083140,1763253143910,992.61,0.00018589,2]
[394083142,1763253150744,-300.0,0.00018762,2]
[394083143,1763253150830,-7322.45798172,0.00018762,2]
[394083144,1763253150864,-10000.01,0.00018762,2]
[394083145,1763253150974,-10000.01,0.00018762,2]
[394083146,1763253151086,-10000.01,0.00018762,2]
[394083147,1763253151211,-10000.01,0.00018762,2]
[394083148,1763253151372,-10000.01,0.00018762,2]
[394083149,1763253151593,-10000.01,0.00018762,2]
[394083150,1763253151621,-10000.01,0.00018762,2]
[394083151,1763253153774,-10000.01,0.00018762,2]
[394083152,1763253156820,-500.0,0.00018761,2]
[394083153,1763253156849,-197.72179634,0.00018761,2]
[394083154,1763253156879,-275.49848135,0.00018761,2]
[394083155,1763253156909,-500.0,0.00018761,2]
[394083156,1763253156939,-167.7856381,0.00018761,2]
[394083157,1763253156974,-500.0,0.00018761,2]
[394083158,1763253157005,-256.44161708,0.00018761,2]
[394083159,1763253157039,-500.0,0.00018761,2]
[394083160,1763253157074,-500.0,0.00018761,2]
[394083161,1763253157115,-500.0,0.00018761,2]
[394083162,1763253157149,-500.0,0.00018761,2]
[394083163,1763253157277,-500.0,0.00018761,2]
[394083164,1763253157412,-500.0,0.00018761,2]
[394083165,1763253157446,-500.0,0.00018761,2]
[394083166,1763253157479,-500.0,0.00018761,2]
[394083167,1763253157511,-500.0,0.00018761,2]
[394083168,1763253157545,-500.0,0.00018761,2]
[394083169,1763253157579,-500.0,0.00018761,2]
[394083170,1763253157611,-500.0,0.00018761,2]
[394083171,1763253157644,-500.0,0.00018761,2]
[394083172,1763253157679,-500.0,0.00018761,2]
[394083173,1763253157712,-500.0,0.00018761,2]
[394083174,1763253157920,-500.0,0.00018761,2]
[394083175,1763253157954,-500.0,0.00018761,2]
[394083176,1763253157991,-500.0,0.00018761,2]
[394083177,1763253158026,-500.0,0.00018761,2]
[394083178,1763253158061,-500.0,0.00018761,2]
[394083179,1763253158103,-500.0,0.00018761,2]
[394083180,1763253158142,-500.0,0.00018761,2]
[394083181,1763253158252,-304.17460931,0.00018761,2]
[394083182,1763253158327,-500.0,0.00018761,2]
[394083183,1763253158362,-500.0,0.00018761,2]
[394083184,1763253158618,-500.0,0.00018761,2]
[394083185,1763253158657,-500.0,0.00018761,2]
[394083186,1763253158691,-500.0,0.00018761,2]
[394083187,1763253159201,-400.96032495,0.00018762,2]
[394083188,1763253159231,-304.17460931,0.00018762,2]
[394083189,1763253159248,-9391.66078138,0.00018762,2]
[394083190,1763253159272,-500.0,0.00018762,2]
[394083191,1763253159293,-500.0,0.00018762,2]
[394083192,1763253159309,-8000.01,0.00018762,2]
[394083193,1763253159332,-10000.01,0.00018762,2]
[394083194,1763253159358,-500.0,0.00018762,2]
[394083195,1763253159377,-500.0,0.00018762,2]
[394083196,1763253159392,-500.0,0.00018762,2]
[394083197,1763253159411,-7000.01,0.00018762,2]
[394083198,1763253160027,-10000.01,0.00018762,2]
[394083199,1763253160263,-1699.67905719,0.00018762,2]
[394083200,1763253160286,-6600.65188562,0.00018762,2]
[394083201,1763253160371,-10000.01,0.00018764,2]
[394083202,1763253160491,-10000.01,0.00018764,2]
[394083203,1763253160633,-10000.01,0.00018764,2]
[394083204,1763253162903,-10000.01,0.00018764,2]
[394083205,1763253163069,-0.05,0.00018764,2]
[394083206,1763253163097,-9999.91,0.00018764,2]
[394083207,1763253163186,-440.69947592,0.00018773,2]
[394083208,1763253163215,-511.0242125,0.00018773,2]
[394083209,1763253163244,-587.62383257,0.00018773,2]
[394083210,1763253163272,-500.0,0.00018776,2]
[394083211,1763253163300,-500.0,0.00018776,2]
[394083212,1763253163328,-500.0,0.00018776,2]
[394083213,1763253163356,-500.0,0.00018776,2]
[394083214,1763253163384,-500.0,0.00018776,2]
[394083215,1763253163412,-500.0,0.00018776,2]
[394083216,1763253163440,-421.31495802,0.00018776,2]
[394083217,1763253163531,-78.68504198,0.00018776,2]
[394083218,1763253163560,-500.0,0.00018776,2]
[394083219,1763253163589,-500.0,0.00018776,2]
[394083220,1763253163630,-500.0,0.00018776,2]
[394083221,1763253163665,-500.0,0.00018777,2]
[394083222,1763253163697,-500.0,0.00018777,2]
[394083223,1763253163727,-500.0,0.00018777,2]
[394083224,1763253163877,-500.0,0.00018777,2]
[394083225,1763253163908,-500.0,0.00018777,2]
[394083226,1763253163938,-500.0,0.00018777,2]
[394083227,1763253163967,-342.63991604,0.00018777,2]
[394083228,1763253164289,-157.36008396,0.00018777,2]
[394083229,1763253164299,-78.68504198,0.00018777,2]
[394083230,1763253169287,-421.31495802,0.00018777,2]
[394083231,1763253169323,-500.0,0.00018777,2]
[394083232,1763253169351,-500.0,0.00018777,2]
[394083233,1763253169379,-500.0,0.00018777,2]
[394083234,1763253169407,-500.0,0.00018777,2]
[394083235,1763253169435,-500.0,0.00018777,2]
[394083236,1763253169463,-500.0,0.00018777,2]
[394083237,1763253169494,-500.0,0.00018777,2]
[394083238,1763253169522,-500.0,0.00018777,2]
[394083239,1763253169550,-500.0,0.00018777,2]
[394083240,1763253169725,-157.38008396,0.00018777,2]
[394083241,1763253169862,-342.61991604,0.00018777,2]
[394083242,1763253169892,-500.0,0.00018777,2]
[394083243,1763253169922,-500.0,0.00018777,2]
[394083244,1763253169952,-500.0,0.00018777,2]
[394083245,1763253169981,-500.0,0.00018777,2]
[394083246,1763253170010,-500.0,0.00018777,2]
[394083247,1763253170040,-342.16516139,0.00018777,2]
[394083248,1763253170192,-3630.43984514,0.00018778,2]
[394083249,1763253170206,-10000.01,0.00018778,2]
[394083250,1763253170243,-10000.01,0.00018778,2]
[394083251,1763253170396,-10000.01,0.00018778,2]
[394083252,1763253170749,-10000.01,0.00018778,2]
[394083253,1763253181791,174.78,5e-05,2]
[394083254,1763253181996,174.78,6.8e-05,2]
[394083255,1763253182171,2974.95465798,0.0001826,2]
[394083256,1763253182333,174.78,8.5e-05,2]
[394083257,1763253182652,174.78,0.000103,2]
[394083258,1763253182937,174.78,0.00012,2]
[394083259,1763253184915,-695.71082835,0.0001826,2]
[394083260,1763253186987,-708.00981607,0.0001826,2]
[394083262,1763253190741,5000.0,0.00018,2]
[394083264,1763253212390,5000.0,0.00018,2]
[394083265,1763253234042,5000.0,0.00018,2]
[394083266,1763253256330,5000.0,0.00018,2]
[394083270,1763253278004,1612.45217892,0.00018,2]
[394083271,1763253301759,223.36,5e-05,2]
[394083272,1763253302082,223.36,5.1e-05,2]
[394083273,1763253302363,223.36,5.3e-05,2]
[394083274,1763253302726,223.36,5.4e-05,2]
[394083275,1763253303183,223.36,5.6e-05,2]
[394083276,1763253303356,223.36,5.7e-05,2]
[394083277,1763253303637,223.36,5.9e-05,2]
[394083278,1763253303912,223.36,6e-05,2]
[394083279,1763253304210,223.36,6.1e-05,2]
[394083280,1763253304524,223.36,6.3e-05,2]
[394083281,1763253304833,223.36,6.4e-05,2]
[394083282,1763253305120,223.36,6.6e-05,2]
[394083283,1763253305416,223.36,6.7e-05,2]
[394083284,1763253305695,223.36,6.9e-05,2]
[394083285,1763253305981,223.36,7e-05,2]
[394083286,1763253306296,223.36,7.1e-05,2]
[394083287,1763253306581,223.36,7.3e-05,2]
[394083288,1763253306858,223.36,7.4e-05,2]
[394083289,1763253307145,223.36,7.6e-05,2]
[394083290,1763253307431,223.36,7.7e-05,2]
[394083291,1763253307712,223.36,7.9e-05,2]
[394083292,1763253307999,223.36,8e-05,2]
[394083293,1763253308364,223.36,8.1e-05,2]
[394083294,1763253308654,223.36,8.3e-05,2]
[394083295,1763253309211,223.36,8.4e-05,2]
[394083296,1763253309491,223.36,8.6e-05,2]
[394083297,1763253309781,223.36,8.7e-05,2]
[394083298,1763253310118,223.36,8.9e-05,2]
[394083299,1763253310578,223.36,9e-05,2]
[394083300,1763253310716,223.36,9.1e-05,2]
[394083301,1763253311121,223.36,9.3e-05,2]
[394083302,1763253311401,223.36,9.4e-05,2]
[394083303,1763253311681,223.36,9.6e-05,2]
[394083304,1763253311962,223.36,9.7e-05,2]
[394083305,1763253312337,223.36,9.9e-05,2]
[394083306,1763253312637,223.36,0.0001,2]
[394083307,1763253313295,223.36,0.000101,2]
[394083308,1763253313563,223.36,0.000103,2]
[394083309,1763253313848,223.36,0.000104,2]
[394083310,1763253314137,223.36,0.000106,2]
[394083311,1763253314527,223.36,0.000107,2]
[394083312,1763253314808,223.36,0.000109,2]
[394083313,1763253315119,223.36,0.00011,2]
[394083314,1763253315606,223.36,0.000111,2]
[394083315,1763253316001,223.36,0.000113,2]
[394083316,1763253316335,223.36,0.000114,2]
[394083317,1763253316631,223.36,0.000116,2]
[394083318,1763253317073,223.36,0.000117,2]
[394083319,1763253317345,223.36,0.000119,2]
[394083320,1763253317757,223.36,0.00012,2]
[394083322,1763253361621,180.88,5e-05,2]
[394083323,1763253361913,180.88,5.1e-05,2]
[394083324,1763253362189,180.88,5.3e-05,2]
[394083326,1763253362451,180.88,5.4e-05,2]
[394083327,1763253362751,180.88,5.6e-05,2]
[394083328,1763253363020,180.88,5.7e-05,2]
[394083329,1763253363304,180.88,5.9e-05,2]
[394083330,1763253363581,180.88,6e-05,2]
[394083331,1763253363845,180.88,6.1e-05,2]
[394083332,1763253364840,180.88,6.3e-05,2]
[394083333,1763253365311,180.88,6.4e-05,2]
[394083334,1763253365583,180.88,6.6e-05,2]
[394083335,1763253365898,180.88,6.7e-05,2]
[394083336,1763253366229,180.88,6.9e-05,2]
[394083337,1763253366541,180.88,7e-05,2]
[394083338,1763253366958,180.88,7.1e-05,2]
[394083339,1763253367316,180.88,7.3e-05,2]
[394083340,1763253367671,180.88,7.4e-05,2]
[394083341,1763253367915,180.88,7.6e-05,2]
[394083342,1763253368203,180.88,7.7e-05,2]
[394083344,1763253368495,180.88,7.9e-05,2]
[394083345,1763253368780,180.88,8e-05,2]
[394083346,1763253369084,180.88,8.1e-05,2]
[394083347,1763253369377,180.88,8.3e-05,2]
[394083348,1763253369412,1025.35932176,0.00018,2]
[394083349,1763253369681,180.88,8.4e-05,2]
[394083350,1763253369967,180.88,8.6e-05,2]
[394083351,1763253370247,180.88,8.7e-05,2]
[394083352,1763253370740,180.88,8.9e-05,2]
[394083353,1763253371034,180.88,9e-05,2]
[394083354,1763253371310,180.88,9.1e-05,2]
[394083355,1763253371724,180.88,9.3e-05,2]
[394083356,1763253371893,180.88,9.4e-05,2]
[394083357,1763253372179,180.88,9.6e-05,2]
[394083358,1763253372454,180.88,9.7e-05,2]
[394083359,1763253372708,300.0,0.0001,7]
[394083360,1763253372737,180.88,9.9e-05,2]
[394083361,1763253373051,180.88,0.0001,2]
[394083362,1763253373357,180.88,0.000101,2]
[394083363,1763253373694,180.88,0.000103,2]
[394083364,1763253373986,180.88,0.000104,2]
[394083365,1763253374130,296.06,0.0001,20]
[394083366,1763253374308,180.88,0.000106,2]
[394083367,1763253374768,180.88,0.000107,2]
[394083368,1763253375098,180.88,0.000109,2]
[394083369,1763253375383,180.88,0.00011,2]
[394083370,1763253375776,180.88,0.000111,2]
[394083371,1763253376090,180.88,0.000113,2]
[394083372,1763253376414,180.88,0.000114,2]
[394083373,1763253376738,180.88,0.000116,2]
[394083374,1763253377014,180.88,0.000117,2]
[394083375,1763253377302,180.88,0.000119,2]
[394083376,1763253377568,2846.13668902,0.00018,2]
[394083377,1763253377591,2153.86331098,0.00018,2]
[394083378,1763253377677,180.88,0.00012,2]
[394083379,1763253387476,452.31017101,0.00018,2]
[394083380,1763253400464,621.3246976,0.00018191,2]
[394083384,1763253406703,651.105124,0.00013699,2]
[394083387,1763253422322,181.64,5e-05,2]
[394083388,1763253422637,181.64,7.3e-05,2]
[394083389,1763253422936,181.64,9.7e-05,2]
[394083390,1763253423166,223.81610509,0.00018309,2]
[394083393,1763253427258,-150.0,0.00018375,2]
[394083394,1763253427281,-261.02304568,0.00018409,2]
[394083395,1763253429322,-411.40377341,0.00018409,2]
[394083396,1763253431374,-521.80173988,0.00018409,2]
[394083398,1763253432817,-154.49965307,0.00018409,2]
[394083428,1763253443314,-2353.30569623,0.00018409,2]
[394083432,1763253463641,3121.9526598,0.00018562,2]
[394083433,1763253478021,560.22471518,0.000327,120]
[394083434,1763253482248,153.58,5e-05,2]
[394083435,1763253482535,153.58,5.1e-05,2]
[394083436,1763253482819,153.58,5.3e-05,2]
[394083437,1763253482874,162.0,9e-07,2]
[394083438,1763253483113,153.58,5.4e-05,2]
[394083439,1763253483392,153.58,5.6e-05,2]
[394083440,1763253483757,153.58,5.7e-05,2]
[394083441,1763253483951,153.58,5.9e-05,2]
[394083442,1763253484292,153.58,6e-05,2]
[394083443,1763253484580,153.58,6.1e-05,2]
[394083444,1763253484868,153.58,6.3e-05,2]
[394083445,1763253485181,153.58,6.4e-05,2]
[394083446,1763253485473,153.58,6.6e-05,2]
[394083447,1763253485757,153.58,6.7e-05,2]
[394083448,1763253486085,153.58,6.9e-05,2]
[394083449,1763253486347,153.58,7e-05,2]
[394083450,1763253486646,153.58,7.1e-05,2]
[394083451,1763253486941,153.58,7.3e-05,2]
[394083452,1763253487319,153.58,7.4e-05,2]
[394083453,1763253487699,153.58,7.6e-05,2]
[394083454,1763253488024,153.58,7.7e-05,2]
[394083455,1763253488373,153.58,7.9e-05,2]
[394083456,1763253488657,153.58,8e-05,2]
[394083457,1763253488935,153.58,8.1e-05,2]
[394083458,1763253489224,153.58,8.3e-05,2]
[394083459,1763253489595,153.58,8.4e-05,2]
[394083460,1763253489918,153.58,8.6e-05,2]
[394083461,1763253490218,153.58,8.7e-05,2]
[394083462,1763253490553,153.58,8.9e-05,2]
[394083463,1763253490786,153.58,9e-05,2]
[394083464,1763253491064,153.58,9.1e-05,2]
[394083465,1763253491341,153.58,9.3e-05,2]
[394083466,1763253491629,153.58,9.4e-05,2]
[394083467,1763253491919,153.58,9.6e-05,2]
[394083468,1763253492185,153.58,9.7e-05,2]
[394083469,1763253492501,153.58,9.9e-05,2]
[394083470,1763253492770,153.58,0.0001,2]
[394083471,1763253493305,153.58,0.000101,2]
[394083472,1763253493576,153.58,0.000103,2]
[394083473,1763253493918,153.58,0.000104,2]
[394083474,1763253494227,153.58,0.000106,2]
[394083475,1763253494563,153.58,0.000107,2]
[394083476,1763253494880,153.58,0.000109,2]
[394083477,1763253495231,153.58,0.00011,2]
[394083478,1763253495547,153.58,0.000111,2]
[394083479,1763253495816,153.58,0.000113,2]
[394083480,1763253496159,153.58,0.000114,2]
[394083481,1763253496437,153.58,0.000116,2]
[394083482,1763253496724,153.58,0.000117,2]
[394083483,1763253497014,153.58,0.000119,2]
[394083484,1763253497311,153.58,0.00012,2]
[394083485,1763253532425,2289.41643109,0.00018577,2]
[394083486,1763253537519,2249.93763013,0.00018396,2]
[394083487,1763253542044,154.31,5e-05,2]
[394083488,1763253542338,154.31,6.8e-05,2]
[394083489,1763253542644,154.31,8.5e-05,2]
[394083490,1763253542935,154.31,0.000103,2]
[394083491,1763253543220,154.31,0.00012,2]
[394083492,1763253552199,542.44593878,0.00018642,2]
[394083493,1763253552222,4457.55406122,0.00018642,2]
[394083494,1763253561591,2489.0,0.00018319,2]
[394083495,1763253566687,2489.0,0.00018432,2]
[394083496,1763253572589,564.45593878,0.0001856,2]
[394083497,1763253572612,1924.54406122,0.0001856,2]
[394083498,1763253574990,2524.82,0.00018642,2]
[394083499,1763253577622,2489.0,0.00018281,2]
[394083502,1763253597276,2475.18,0.00018642,2]
[394083503,1763253601567,249.44,5e-05,2]
[394083504,1763253601848,249.44,5.1e-05,2]
[394083505,1763253602138,87.58593878,5.3e-05,2]
[394083506,1763253602164,161.85406122,5.3e-05,2]
[394083507,1763253602408,249.44,5.4e-05,2]
[394083508,1763253602757,249.44,5.6e-05,2]
[394083509,1763253603106,249.44,5.7e-05,2]
[394083510,1763253603414,249.44,5.9e-05,2]
[394083511,1763253603695,249.44,6e-05,2]
[394083512,1763253604093,249.44,6.1e-05,2]
[394083513,1763253604264,249.44,6.3e-05,2]
[394083514,1763253604557,249.44,6.4e-05,2]
[394083515,1763253605010,249.44,6.6e-05,2]
[394083516,1763253605326,249.44,6.7e-05,2]
[394083517,1763253605666,249.44,6.9e-05,2]
[394083518,1763253605939,249.44,7e-05,2]
[394083519,1763253606258,249.44,7.1e-05,2]
[394083520,1763253606513,249.44,7.3e-05,2]
[394083521,1763253606787,249.44,7.4e-05,2]
[394083522,1763253607055,249.44,7.6e-05,2]
[394083523,1763253607348,249.44,7.7e-05,2]
[394083524,1763253607639,249.44,7.9e-05,2]
[394083525,1763253607913,249.44,8e-05,2]
[394083526,1763253608204,249.44,8.1e-05,2]
[394083527,1763253608474,249.44,8.3e-05,2]
[394083529,1763253608781,249.44,8.4e-05,2]
[394083530,1763253609113,249.44,8.6e-05,2]
[394083531,1763253609384,249.44,8.7e-05,2]
[394083532,1763253609822,249.44,8.9e-05,2]
[394083533,1763253610119,249.44,9e-05,2]
[394083534,1763253610435,249.44,9.1e-05,2]
[394083535,1763253610741,249.44,9.3e-05,2]
[394083536,1763253611013,249.44,9.4e-05,2]
[394083537,1763253611296,249.44,9.6e-05,2]
[394083538,1763253611599,249.44,9.7e-05,2]
[394083539,1763253611885,249.44,9.9e-05,2]
[394083540,1763253612199,249.44,0.0001,2]
[394083541,1763253612481,249.44,0.000101,2]
[394083542,1763253612790,249.44,0.000103,2]
[394083543,1763253613090,249.44,0.000104,2]
[394083544,1763253613373,249.44,0.000106,2]
[394083545,1763253613721,249.44,0.000107,2]
[394083546,1763253614055,249.44,0.000109,2]
[394083547,1763253614375,249.44,0.00011,2]
[394083548,1763253614653,249.44,0.000111,2]
[394083549,1763253614947,249.44,0.000113,2]
[394083550,1763253615295,249.44,0.000114,2]
[394083551,1763253615649,249.44,0.000116,2]
[394083552,1763253615961,249.44,0.000117,2]
[394083553,1763253616233,249.44,0.000119,2]
[394083554,1763253616554,249.44,0.00012,2]
[394083558,1763253661490,151.34,5e-05,2]
[394083559,1763253661935,151.34,5.2e-05,2]
[394083560,1763253662335,151.34,5.3e-05,2]
[394083561,1763253662666,151.34,5.5e-05,2]
[394083562,1763253662949,151.34,5.7e-05,2]
[394083563,1763253663304,151.34,5.9e-05,2]
[394083564,1763253663677,151.34,6e-05,2]
[394083565,1763253664065,151.34,6.2e-05,2]
[394083566,1763253664364,151.34,6.4e-05,2]
[394083567,1763253664764,151.34,6.5e-05,2]
[394083568,1763253665107,151.34,6.7e-05,2]
[394083569,1763253665438,151.34,6.9e-05,2]
[394083570,1763253665745,151.34,7e-05,2]
[394083571,1763253666027,151.34,7.2e-05,2]
[394083572,1763253666298,151.34,7.4e-05,2]
[394083573,1763253666583,151.34,7.6e-05,2]
[394083574,1763253667017,151.34,7.7e-05,2]
[394083575,1763253667236,151.34,7.9e-05,2]
[394083576,1763253667674,151.34,8.1e-05,2]
[394083577,1763253667955,151.34,8.2e-05,2]
[394083578,1763253668347,151.34,8.4e-05,2]
[394083579,1763253668700,151.34,8.6e-05,2]
[394083580,1763253668978,151.34,8.8e-05,2]
[394083581,1763253669248,151.34,8.9e-05,2]
[394083582,1763253669513,151.34,9.1e-05,2]
[394083583,1763253669806,151.34,9.3e-05,2]
[394083584,1763253670103,151.34,9.4e-05,2]
[394083585,1763253670373,151.34,9.6e-05,2]
[394083586,1763253670657,151.34,9.8e-05,2]
[394083587,1763253671580,151.34,0.0001,2]
[394083588,1763253672035,151.34,0.000101,2]
[394083589,1763253672341,151.34,0.000103,2]
[394083590,1763253672676,151.34,0.000105,2]
[394083591,1763253673050,151.34,0.000106,2]
[394083592,1763253673385,151.34,0.000108,2]
[394083593,1763253673744,151.34,0.00011,2]
[394083594,1763253674017,50518.75175624,0.00015758,2]
[394083595,1763253674118,151.34,0.000111,2]
[394083596,1763253674453,151.34,0.000113,2]
[394083597,1763253674806,151.34,0.000115,2]
[394083598,1763253675134,151.34,0.000117,2]
[394083599,1763253675442,151.34,0.000118,2]
[394083601,1763253697857,-203.17046403,0.00018465,2]
[394083602,1763253697879,-96.82953597,0.00018559,2]
[394083641,1763253742874,-53.17046403,0.00018559,2]
[394083642,1763253742896,-114.81119846,0.00018561,2]
[394083644,1763253746157,-300.0,0.00018561,2]
[394083646,1763253748152,-237.19728537,0.00018561,2]
[394083647,1763253749624,-300.0,0.00018561,2]
[394083648,1763253751420,-315.85,0.00018561,2]
[394083652,1763253876728,173.0,0.00032877,120]
[394083675,1763254063567,1000.0,0.00032,120]
[394083676,1763254074645,1000.0,0.00018,2]
[394083678,1763254117267,-399.01948534,0.00018162,2]
[394083679,1763254120045,-506.31089864,0.00018162,2]
[394083681,1763254141148,150.0,0.00032876,120]
[394083705,1763254232292,-989.575,0.00018162,2]
[394083740,1763254238206,-3789.09461602,0.00018162,2]
[394083741,1763254238216,-150.0,0.00018319,2]
[394083742,1763254238225,-889.0,0.00018451,2]
[394083743,1763254238235,-300.0,0.00018476,2]
[394083744,1763254238245,-1089.99538398,0.00018476,2]
[394083783,1763254240590,-3e-08,0.00018476,2]
[394083937,1763254245868,-110.00461599,0.00018476,2]
[394083938,1763254245879,-1205.60151618,0.00018477,2]
[394083940,1763254246085,-4478.39848382,0.00018477,2]
[394083941,1763254246094,-3749.28710884,0.0001848,2]
[394083942,1763254246103,-790.24294531,0.0001853,2]
[394083943,1763254246113,-1831.53314488,0.00018564,2]
[394083944,1763254246122,-1629.89101783,0.00018603,2]
[394083945,1763254246132,-180.36,0.00018641,2]
[394083946,1763254246141,-500.0,0.00018651,2]
[394083947,1763254246151,-500.0,0.00018651,2]
[394083948,1763254246160,-500.0,0.00018651,2]
[394083949,1763254246170,-500.0,0.00018651,2]
[394083951,1763254246179,-500.0,0.00018651,2]
[394083953,1763254246188,-500.0,0.00018651,2]
[394083955,1763254246197,-500.0,0.00018651,2]
[394083957,1763254246206,-500.0,0.00018651,2]
[394083959,1763254246215,-500.0,0.00018651,2]
[394083961,1763254246224,-500.0,0.00018651,2]
[394083963,1763254246233,-500.0,0.00018651,2]
[394083965,1763254246242,-500.0,0.00018651,2]
[394083967,1763254246251,-500.0,0.00018651,2]
[394083969,1763254246260,-500.0,0.00018651,2]
[394083971,1763254246269,-500.0,0.00018651,2]
[394083972,1763254246280,-500.0,0.00018651,2]
[394083973,1763254246289,-397.14951968,0.00018651,2]
[394083975,1763254246298,-573.82754043,0.00018651,2]
[394083976,1763254246307,-500.0,0.00018651,2]
[394083977,1763254246316,-500.0,0.00018651,2]
[394083978,1763254246326,-500.0,0.00018651,2]
[394083979,1763254246335,-500.0,0.00018651,2]
[394083980,1763254246344,-630.81256934,0.00018651,2]
[394083982,1763254246353,-500.0,0.00018651,2]
[394083983,1763254246362,-500.0,0.00018651,2]
[394083984,1763254246371,-500.0,0.00018651,2]
[394083985,1763254246380,-321.09590496,0.00018651,2]
[394083986,1763254246389,-500.0,0.00018651,2]
[394083987,1763254246398,-500.0,0.00018651,2]
[394083989,1763254246407,-500.0,0.00018651,2]
[394083990,1763254246418,-500.0,0.00018651,2]
[394083991,1763254246427,-500.0,0.00018651,2]
[394083992,1763254246436,-500.0,0.00018651,2]
[394083993,1763254246445,-500.0,0.00018651,2]
[394083994,1763254246454,-500.0,0.00018651,2]
[394083995,1763254246463,-500.0,0.00018651,2]
[394083996,1763254246472,-500.0,0.00018651,2]
[394083997,1763254246482,-500.0,0.00018651,2]
[394083998,1763254246491,-500.0,0.00018651,2]
[394083999,1763254246501,-500.0,0.00018651,2]
[394084000,1763254246510,-500.0,0.00018651,2]
[394084001,1763254246520,-209.51537014,0.00018651,2]
[394084002,1763254246529,-500.0,0.00018651,2]
[394084003,1763254246538,-500.0,0.00018651,2]
[394084004,1763254246547,-500.0,0.00018651,2]
[394084005,1763254246557,-500.0,0.00018651,2]
[394084006,1763254246566,-500.0,0.00018651,2]
[394084007,1763254246575,-500.0,0.00018651,2]
[394084008,1763254246584,-500.0,0.00018651,2]